bitfinex-derivatives/quotes_ETHF0:USTF0_20250817
["timestamp","ask_amount","ask_price","bid_price","bid_amount"]
[1755388800355,1.4525,4424.5,4424.4,1.4626]
[1755388800556,4.87502353,4424.5,4424.4,1.4626]
[1755388801760,4.87502353,4424.5,4424.4,0.1743]
[1755388803361,4.87502353,4424.5,4424.4,0.4141]
[1755388803660,4.87502353,4424.5,4424.4,0.5745]
[1755388804061,4.87502353,4424.5,4424.4,0.4141]
[1755388804560,4.87502353,4424.5,4424.4,0.1743]
[1755388804760,0.8705,4424.4,4423.5,3.2078]
[1755388805059,0.59522353,4424.3,4423.5,3.2078]
[1755388805257,1.28672353,4424.2,4424.1,0.4141]
[1755388805460,1.66722353,4424.2,4424.1,0.5745]
[1755388806561,0.2421,4424.1,4423.5,3.2078]
[1755388806760,0.582,4423.6,4423.5,3.7823]
[1755388806954,1.4525,4423.6,4423.5,4.1557]
[1755388807755,1.4525,4423.6,4423.0,3.2078]
[1755388807960,1.4525,4423.5,4423.4,0.4141]
[1755388808260,3.2078,4424.0,4423.4,0.4141]
[1755388808261,3.2078,4424.0,4423.4,0.9479]
[1755388808461,0.38353026,4423.9,4423.8,0.5745]
[1755388808663,0.79683026,4423.9,4423.3,0.3734]
[1755388808857,3.2078,4424.0,4423.0,3.2078]
[1755388808858,0.21483026,4423.8,4423.7,0.9479]
[1755388809060,3.2078,4424.0,4423.9,0.5745]
[1755388809362,0.2148393,4424.0,4423.9,4.1557]
[1755388809861,0.21483764,4424.0,4423.9,4.1557]
[1755388810063,0.49,4424.4,4423.9,3.7823]
[1755388810263,0.21484515,4424.3,4424.2,0.5745]
[1755388810457,0.21484515,4424.3,4424.2,0.9479]
[1755388810963,0.45694515,4424.3,4424.2,0.9479]
[1755388811664,1.25654515,4424.3,4424.2,0.9479]
[1755388812867,1.66734515,4424.3,4424.2,0.9479]
[1755388815866,1.66734515,4424.3,4424.2,1.2016]
[1755388820467,1.66734515,4424.3,4424.2,0.9479]
[1755388820668,1.66734515,4424.3,4424.2,1.2132]
[1755388825274,2.29213753,4424.3,4424.2,1.2132]
[1755388827671,1.41993753,4424.3,4424.2,1.2132]
[1755388827876,1.05664515,4424.3,4424.2,1.4779]
[1755388828577,1.68404515,4424.3,4424.2,1.4779]
[1755388830179,1.68608412,4424.3,4424.2,1.4779]
[1755388831781,1.31478412,4424.3,4424.2,1.4779]
[1755388831980,1.05328412,4424.3,4424.2,1.4779]
[1755388832279,0.21688412,4424.3,4424.2,1.4779]
[1755388834582,1.14238412,4424.3,4424.2,1.4779]
[1755388834788,1.68658412,4424.3,4424.2,1.4779]
[1755388835986,1.68638144,4424.3,4424.2,1.4779]
[1755388841791,1.4697,4424.3,4424.2,1.4779]
[1755388842092,1.68636928,4424.3,4424.2,1.4779]
[1755388844194,1.4697,4424.3,4424.2,1.4779]
[1755388844391,1.68634974,4424.3,4424.2,1.4779]
[1755388845893,1.68635067,4424.3,4424.2,1.4779]
[1755388850997,0.2646,4425.0,4424.2,0.5745]
[1755388851199,1.6944842,4424.9,4424.8,3.7877]
[1755388851592,1.6944842,4424.9,4424.8,4.6799]
[1755388853998,1.69450091,4424.9,4424.8,4.6799]
[1755388861805,1.31300091,4424.9,4424.8,4.6799]
[1755388862198,0.21670091,4424.9,4424.8,4.6799]
[1755388862393,0.1,4425.2,4424.9,0.6368]
[1755388862605,0.6101,4425.2,4425.1,1.4721]
[1755388862908,1.55401906,4425.2,4425.1,1.4721]
[1755388863205,1.79431906,4425.2,4425.1,1.4721]
[1755388863405,0.90271906,4425.2,4424.9,20.466]
[1755388863605,1.4778,4425.0,4424.9,20.466]
[1755388863911,1.4778,4424.5,4424.4,20.466]
[1755388864198,1.4778,4424.5,4424.4,21.0065]
[1755388864405,1.4778,4424.5,4424.4,21.7674]
[1755388864706,1.4778,4424.5,4424.4,21.9381]
[1755388871411,1.69424737,4424.5,4424.4,21.9381]
[1755388871613,1.69424737,4424.5,4424.4,21.4231]
[1755388871805,1.69424737,4424.5,4424.4,21.2524]
[1755388872313,1.69424737,4424.5,4424.4,21.9381]
[1755388873511,1.69426419,4424.5,4424.4,21.9381]
[1755388873906,1.4778,4424.5,4424.4,21.9381]
[1755388874106,1.69427,4424.5,4424.4,21.9381]
[1755388875007,1.4778,4424.5,4424.4,21.9381]
[1755388875207,1.69428153,4424.5,4424.4,21.9371]
[1755388876910,1.69428153,4424.5,4424.4,20.465]
[1755388877315,1.69428153,4424.5,4424.4,20.6283]
[1755388877517,1.69428153,4424.5,4424.4,21.7664]
[1755388878211,1.69428153,4424.5,4424.2,3.2078]
[1755388878417,3.3078,4425.2,4424.3,20.6283]
[1755388878418,1.69434614,4424.4,4424.3,20.6283]
[1755388879714,1.69434614,4424.4,4424.3,20.465]
[1755388883419,1.69434614,4424.4,4424.3,20.8617]
[1755388884116,1.69434614,4424.4,4424.0,0.5157]
[1755388884117,0.5855,4424.1,4424.0,20.465]
[1755388884310,1.69564614,4424.1,4423.6,0.3967]
[1755388884517,1.4791,4423.4,4423.3,1.4765]
[1755388884718,1.4791,4423.4,4423.3,21.2656]
[1755388884919,1.69405047,4423.4,4423.3,20.8689]
[1755388885120,1.69405047,4423.4,4423.3,20.6292]
[1755388885415,0.5045,4423.3,4422.7,0.655]
[1755388885618,1.4791,4422.8,4422.7,1.4765]
[1755388885816,1.4791,4422.8,4422.7,21.9415]
[1755388886212,1.4791,4422.8,4422.7,20.8689]
[1755388886519,1.4791,4422.8,4422.7,21.7813]
[1755388886718,1.4791,4422.8,4422.7,21.9415]
[1755388890523,0.5045,4423.8,4422.7,21.0291]
[1755388890728,3.2078,4424.0,4422.7,21.0291]
[1755388890729,1.69341093,4423.7,4423.2,0.5157]
[1755388890929,1.4791,4423.3,4423.2,21.9445]
[1755388891127,1.4791,4423.3,4423.2,20.468]
[1755388891431,0.5855,4423.0,4422.9,20.468]
[1755388891730,0.5855,4422.6,4422.1,0.3967]
[1755388892028,1.4791,4422.2,4422.1,21.0289]
[1755388892229,1.4791,4422.2,4422.1,20.6322]
[1755388892631,1.4791,4422.2,4422.1,20.468]
[1755388892833,0.5855,4421.8,4421.7,20.47]
[1755388893027,1.4791,4421.8,4421.7,21.2706]
[1755388893227,1.4791,4421.8,4421.7,21.9465]
[1755388896733,1.4791,4421.8,4421.7,21.4308]
[1755388898135,1.4791,4421.8,4421.7,21.9465]
[1755388898434,1.4791,4421.8,4421.7,21.7863]
[1755388898629,1.4791,4421.8,4421.7,21.9465]
[1755388904732,1.4791,4421.8,4421.7,21.6882]
[1755388905127,1.4791,4421.8,4421.7,21.0341]
[1755388905334,1.4791,4421.8,4421.7,20.47]
[1755388905736,0.2489,4422.0,4421.4,20.476]
[1755388905939,0.3376,4421.6,4421.5,1.4765]
[1755388906234,0.5865,4421.6,4421.5,21.9525]
[1755388906540,1.2312,4421.6,4421.5,21.9525]
[1755388906838,1.4791,4421.6,4421.5,21.9525]
[1755388910234,3.8165,4422.1,4422.0,0.5862]
[1755388910440,4.90479483,4422.1,4422.0,1.4776]
[1755388911640,4.90479483,4422.1,4422.0,0.9576]
[1755388911842,4.90494694,4422.1,4422.0,0.9576]
[1755388912040,4.90494694,4422.1,4421.8,0.52]
[1755388912041,4.03054694,4422.1,4421.8,0.52]
[1755388912339,0.6087,4421.9,4421.8,1.0664]
[1755388912539,1.4831,4421.9,4421.8,0.5464]
[1755388913337,1.70118286,4421.9,4421.8,0.7864]
[1755388913644,1.70118286,4421.9,4421.8,1.4776]
[1755388917242,1.4831,4421.9,4421.8,1.4776]
[1755388917442,2.32741493,4421.9,4421.8,1.4776]
[1755388918344,1.70159221,4421.9,4421.8,1.4776]
[1755388919141,1.34289221,4421.9,4421.8,1.4776]
[1755388919341,1.70159221,4421.9,4421.8,1.4776]
[1755388920544,0.8744,4421.8,4421.6,0.8914]
[1755388920749,1.45349119,4421.7,4421.6,1.4776]
[1755388921052,2.32789119,4421.7,4421.6,1.4776]
[1755388921451,2.32789119,4421.7,4421.5,20.478]
[1755388921651,2.32789119,4421.6,4421.5,20.478]
[1755388921853,2.32789119,4421.6,4421.5,21.7844]
[1755388922048,2.32839659,4421.6,4421.5,21.9556]
[1755388923447,2.32839659,4421.6,4421.5,0.4318]
[1755388923648,0.84529659,4421.6,4421.5,0.8914]
[1755388923851,1.09749659,4421.6,4421.5,1.4776]
[1755388924157,2.32839659,4421.6,4421.5,1.4776]
[1755388925453,2.32848675,4421.6,4421.5,1.4776]
[1755388927456,1.70218777,4421.6,4421.5,1.4776]
[1755388936559,1.70225477,4421.6,4421.5,1.4776]
[1755388939964,1.70225975,4421.6,4421.5,1.4776]
[1755388942863,1.4831,4421.6,4421.5,1.4776]
[1755388943160,1.70225736,4421.6,4421.5,1.4776]
[1755388943360,1.70064044,4421.6,4421.5,1.4776]
[1755388943567,1.70064073,4421.6,4421.5,1.4776]
[1755388944171,1.53579698,4421.6,4421.5,1.4776]
[1755388945972,0.21754073,4421.6,4421.5,1.4776]
[1755388947772,0.2568,4422.6,4421.5,4.4776]
[1755388947967,1.05573682,4422.5,4422.4,0.6051]
[1755388948168,1.05573682,4422.5,4422.4,1.4975]
[1755388948169,2.10433682,4422.5,4422.4,1.4975]
[1755388951573,2.10433682,4422.5,4422.4,1.239]
[1755388951774,2.10433682,4422.5,4422.4,0.9813]
[1755388951974,2.10433682,4422.5,4422.4,0.5906]
[1755388952273,1.475,4422.2,4422.1,20.479]
[1755388952473,0.588,4422.0,4421.9,1.2398]
[1755388952977,1.475,4422.0,4421.9,0.9813]
[1755388953676,1.475,4422.0,4421.9,1.2398]
[1755388954777,1.475,4422.0,4421.9,1.4975]
[1755388955077,3.2078,4422.7,4421.9,1.4975]
[1755388955278,1.84680339,4422.6,4422.5,1.1068]
[1755388955573,3.2078,4422.7,4422.6,0.8924]
[1755388955779,3.2078,4422.7,4422.6,21.9745]
[1755388957781,0.8457,4423.3,4423.2,0.6051]
[1755388957971,0.887,4423.8,4423.2,1.4975]
[1755388958177,1.21630482,4423.7,4423.6,0.6051]
[1755388958485,2.10330482,4423.7,4423.6,1.4975]
[1755388959980,2.31734877,4423.7,4423.6,1.4975]
[1755388960181,1.68904395,4423.7,4423.6,1.4975]
[1755388961179,1.68904395,4423.7,4423.6,1.239]
[1755388961485,1.68904395,4423.7,4423.4,20.517]
[1755388961670,0.588,4423.5,4423.4,21.1076]
[1755388961876,1.68904395,4423.5,4423.4,21.4983]
[1755388963973,1.68904395,4423.5,4423.4,20.517]
[1755388964178,1.68904395,4423.5,4423.4,20.8644]
[1755388964378,1.68904395,4423.5,4423.4,21.7568]
[1755388965086,1.68904395,4423.5,4423.4,22.0145]
[1755388965385,1.475,4423.5,4423.4,22.0145]
[1755388965586,1.68879864,4423.5,4423.4,22.0145]
[1755388966186,1.475,4423.5,4423.4,22.0145]
[1755388972795,1.68880216,4423.5,4423.4,22.0145]
[1755388973991,0.21380216,4423.5,4423.4,22.0145]
[1755388974192,3.2078,4423.9,4423.8,1.1915]
[1755388974391,3.2078,4423.9,4423.8,21.9522]
[1755388974589,3.2078,4424.5,4423.9,0.2541]
[1755388974895,4.49,4424.5,4424.4,1.4542]
[1755388975196,4.86916869,4424.5,4424.4,21.9582]
[1755388975500,4.6546,4424.5,4424.4,21.9582]
[1755388975687,3.2078,4424.5,4424.4,21.9582]
[1755388975894,3.7899,4425.0,4424.9,0.5622]
[1755388976092,4.8691413,4425.0,4424.9,21.9562]
[1755388977891,4.6546,4425.0,4424.9,21.9562]
[1755388982198,1.4468,4425.0,4424.9,21.9562]
[1755388984695,1.4468,4425.0,4424.9,20.8238]
[1755388984896,0.5821,4424.4,4424.3,0.9597]
[1755388985089,1.4468,4424.4,4424.3,21.7098]
[1755388985289,1.4468,4424.4,4424.3,20.8178]
[1755388985694,1.4468,4424.4,4424.3,21.0719]
[1755388985890,1.4468,4424.4,4424.3,20.496]
[1755388986091,0.5821,4424.1,4424.0,20.496]
[1755388986296,1.4468,4424.1,4424.0,20.496]
[1755388986496,1.4468,4424.1,4424.0,20.9109]
[1755388986698,1.4468,4424.1,4424.0,21.2861]
[1755388987901,1.4468,4424.1,4424.0,21.7098]
[1755388988698,0.8647,4424.0,4423.5,3.4705]
[1755388988900,3.2078,4424.5,4423.5,4.0241]
[1755388988901,1.4468,4423.6,4423.5,4.0241]
[1755388989099,1.4468,4423.6,4423.5,24.5221]
[1755388989502,1.4468,4423.6,4423.5,21.3143]
[1755388989693,1.4468,4423.6,4423.5,21.6895]
[1755388990804,1.4468,4423.6,4423.5,21.9522]
[1755388992805,0.8231,4423.6,4423.5,21.9522]
[1755388992999,3.2078,4424.0,4423.5,21.0602]
[1755388993204,1.2058,4423.8,4423.7,0.5622]
[1755388993405,1.42038046,4423.8,4423.7,1.4542]
[1755388993710,1.66138046,4423.8,4423.7,1.4542]
[1755389000814,0.21458046,4423.8,4423.7,1.4542]
[1755389001109,1.4889,4423.8,4423.7,1.4542]
[1755389001309,1.70348046,4423.8,4423.7,1.4542]
[1755389002212,0.21458046,4423.8,4423.7,1.4542]
[1755389002408,1.10248046,4423.8,4423.7,0.5622]
[1755389002613,1.27558046,4423.8,4423.7,0.5622]
[1755389002816,1.70348046,4423.8,4423.7,0.5622]
[1755389003012,1.70348046,4423.8,4423.7,1.4671]
[1755389007017,1.70348046,4423.8,4423.7,1.2118]
[1755389007218,1.70348046,4423.8,4423.7,0.584]
[1755389007618,1.70348046,4423.8,4423.7,0.9714]
[1755389009313,1.70348046,4423.8,4423.5,20.7533]
[1755389009513,1.4889,4423.6,4423.5,21.7327]
[1755389009714,1.4889,4423.3,4423.2,23.8512]
[1755389010311,1.4889,4423.3,4423.2,25.1599]
[1755389011317,1.70160868,4423.3,4423.2,25.1599]
[1755389011714,1.4889,4423.3,4423.2,25.1599]
[1755389011917,0.601,4423.9,4423.8,0.3298]
[1755389012110,1.44261882,4423.9,4423.8,0.9794]
[1755389012318,1.44261882,4423.9,4423.8,0.592]
[1755389012622,0.601,4423.7,4423.6,1.0723]
[1755389012922,0.601,4423.7,4423.6,0.817]
[1755389012923,1.70169385,4423.7,4423.6,0.817]
[1755389013122,1.70176485,4423.7,4423.6,0.817]
[1755389014016,0.81386485,4423.7,4423.4,0.2553]
[1755389014216,0.21279417,4423.9,4423.4,0.2553]
[1755389014217,0.601,4423.5,4423.4,0.6849]
[1755389014416,1.70176485,4423.5,4423.4,0.6849]
[1755389014919,1.70176485,4423.5,4423.4,1.0723]
[1755389016320,1.70176485,4423.5,4423.4,1.2347]
[1755389016517,0.21286485,4423.5,4423.4,1.2347]
[1755389016723,0.21286485,4423.8,4423.4,0.9794]
[1755389016923,1.27061279,4423.7,4423.6,1.4761]
[1755389017123,1.44371279,4423.7,4423.6,1.4761]
[1755389017423,2.33161279,4423.7,4423.6,0.3298]
[1755389018421,2.33161279,4423.7,4423.6,1.4761]
[1755389021326,2.07521279,4423.7,4423.6,1.4761]
[1755389021527,2.33199346,4423.7,4423.6,1.4761]
[1755389026631,2.3320012,4423.7,4423.6,1.4761]
[1755389031430,2.33201713,4423.7,4423.6,1.4761]
[1755389040244,2.33201713,4423.7,4423.6,1.0515]
[1755389040744,2.33201713,4423.7,4423.6,1.4856]
[1755389042742,2.33201713,4423.7,4423.6,0.4341]
[1755389042948,2.33201713,4423.7,4423.3,0.9913]
[1755389042949,0.5811,4423.4,4423.3,0.9913]
[1755389043147,1.66986919,4423.4,4423.3,1.2374]
[1755389043343,1.66986919,4423.4,4422.9,0.2574]
[1755389043344,1.42518591,4423.4,4422.9,0.2574]
[1755389043548,1.42518591,4423.3,4423.2,0.6005]
[1755389043751,1.42518591,4423.3,4423.2,0.9913]
[1755389044047,2.30068591,4423.3,4423.2,0.9913]
[1755389045243,2.30068591,4423.3,4422.6,3.2078]
[1755389045244,1.2089,4423.2,4422.5,20.474]
[1755389045546,1.4566,4423.2,4423.1,1.4949]
[1755389045743,2.30144952,4423.2,4423.1,1.4949]
[1755389046247,1.42594952,4423.2,4423.1,1.4949]
[1755389046641,2.30144952,4423.2,4423.1,1.4949]
[1755389047044,2.0872768,4423.2,4423.1,1.4949]
[1755389047347,1.67075504,4423.2,4423.1,1.4949]
[1755389050155,1.4566,4423.2,4423.1,1.4949]
[1755389050452,1.67071747,4423.2,4423.1,1.4949]
[1755389053457,1.67071747,4423.2,4423.1,1.2488]
[1755389053958,1.67071747,4423.2,4423.1,1.4949]
[1755389055758,1.67071747,4423.2,4423.1,0.3431]
[1755389055957,0.79521747,4423.2,4422.6,23.6818]
[1755389056157,1.08961747,4423.1,4422.7,0.8943]
[1755389056457,1.4566,4422.8,4422.7,1.4949]
[1755389056654,1.67071747,4422.8,4422.7,1.4949]
[1755389060361,0.62931747,4422.8,4422.7,1.4949]
[1755389060559,1.65529417,4423.9,4423.8,1.4868]
[1755389060761,0.42690374,4423.9,4423.8,1.4868]
[1755389060956,3.2078,4424.8,4424.7,0.2627]
[1755389061261,3.2078,4424.8,4424.7,1.3097]
[1755389061750,0.2493,4424.9,4424.7,0.6064]
[1755389061955,1.1161,4424.9,4424.8,1.3097]
[1755389062257,0.3436,4425.2,4424.8,1.3097]
[1755389062457,1.1161,4425.1,4425.0,0.4388]
[1755389062657,1.2785,4425.1,4425.0,1.3097]
[1755389063563,1.1989,4425.1,4425.0,1.3097]
[1755389063756,0.1,4425.2,4425.1,1.3097]
[1755389066561,0.8274,4426.1,4426.0,0.8943]
[1755389066763,0.2517,4426.1,4426.0,21.607]
[1755389066960,3.2078,4426.6,4426.1,0.6033]
[1755389067166,4.2427,4426.6,4426.5,1.136]
[1755389067463,4.6503,4426.6,4426.5,1.136]
[1755389070360,4.6503,4426.6,4426.5,0.8943]
[1755389070560,4.6503,4426.6,4426.5,1.136]
[1755389071263,0.2493,4427.0,4426.5,1.136]
[1755389071461,1.4425,4426.9,4426.8,0.5327]
[1755389071663,1.4425,4426.9,4426.8,1.136]
[1755389073567,1.4425,4426.9,4426.8,0.947]
[1755389073767,1.4425,4426.9,4426.8,0.5872]
[1755389074067,1.4425,4426.9,4426.8,0.3437]
[1755389075665,1.4425,4426.9,4426.8,0.7043]
[1755389075864,1.4425,4426.9,4426.8,0.5872]
[1755389076263,1.4425,4426.9,4426.8,0.1676]
[1755389076766,1.4425,4426.9,4426.8,0.4111]
[1755389076965,1.4425,4426.9,4426.8,0.946]
[1755389077670,1.4425,4426.9,4426.8,0.7043]
[1755389078067,1.4425,4426.9,4426.8,0.5872]
[1755389079168,1.4425,4426.9,4426.8,0.7043]
[1755389080869,1.4425,4426.9,4426.8,0.946]
[1755389082170,1.4425,4426.9,4426.8,1.1333]
[1755389083272,1.0349,4426.9,4426.8,1.1333]
[1755389083473,0.2517,4426.9,4426.8,1.1333]
[1755389084066,1.1161,4426.9,4426.8,1.1333]
[1755389084471,0.8725,4426.9,4426.8,1.1333]
[1755389084964,1.1161,4426.9,4426.8,1.1333]
[1755389085362,1.2785,4426.9,4426.8,1.1333]
[1755389085572,1.0349,4426.9,4426.8,1.1333]
[1755389086171,1.2785,4426.9,4426.8,1.1333]
[1755389086575,1.4425,4426.9,4426.8,1.1333]
[1755389086964,1.4425,4426.9,4426.8,0.946]
[1755389087966,1.4425,4426.9,4426.8,1.1333]
[1755389089976,1.4425,4426.9,4426.3,3.2078]
[1755389089977,1.4644,4426.4,4426.3,24.8109]
[1755389091377,0.2388,4426.7,4426.3,24.1899]
[1755389091577,0.8662,4426.6,4426.5,1.0285]
[1755389091779,0.8662,4426.6,4426.5,1.1461]
[1755389091979,0.6274,4426.6,4426.5,1.1461]
[1755389092479,1.76262442,4426.6,4426.5,1.1461]
[1755389092779,1.92202442,4426.6,4426.5,1.1461]
[1755389093172,2.12790126,4426.6,4426.5,1.1461]
[1755389093774,1.88910126,4426.6,4426.5,1.1461]
[1755389093978,2.12790126,4426.6,4426.5,1.1461]
[1755389094174,1.10230126,4426.6,4426.5,1.1461]
[1755389094474,0.83720126,4426.6,4426.5,1.1461]
[1755389095073,2.30160126,4426.6,4426.5,1.1461]
[1755389096977,2.30202166,4426.6,4426.5,1.1461]
[1755389097777,1.88952166,4426.6,4426.5,1.1461]
[1755389097980,0.83762166,4426.6,4426.5,1.1461]
[1755389099774,1.4644,4427.4,4427.3,0.5251]
[1755389099973,2.3034897,4427.4,4427.3,1.1461]
[1755389100368,2.30350642,4427.4,4427.3,1.1461]
[1755389100573,0.83910642,4427.4,4427.3,1.1461]
[1755389100775,2.12980642,4427.4,4427.3,1.1461]
[1755389101085,2.30350642,4427.4,4427.3,1.1461]
[1755389102068,2.30350642,4427.4,4427.3,0.1746]
[1755389102273,1.43730642,4427.4,4427.3,20.6173]
[1755389102477,1.44249492,4427.4,4427.3,21.1554]
[1755389102678,1.44249492,4427.4,4427.3,21.4129]
[1755389102877,2.30869492,4427.4,4427.3,21.6011]
[1755389104877,2.30869492,4427.4,4427.3,20.7919]
[1755389105181,2.30869492,4427.4,4427.3,20.6173]
[1755389106282,2.30869492,4427.4,4427.0,3.4537]
[1755389106483,0.5982,4427.1,4427.0,3.2078]
[1755389106783,1.4644,4427.1,4427.0,23.6618]
[1755389107481,1.4644,4427.1,4427.0,24.07]
[1755389108075,1.4644,4427.1,4427.0,24.3622]
[1755389108279,1.4644,4427.1,4427.0,24.8079]
[1755389108983,0.2651,4427.1,4427.0,24.8079]
[1755389109689,1.0519,4427.1,4427.0,24.8079]
[1755389109887,1.2907,4427.1,4427.0,24.8079]
[1755389110089,1.4644,4427.1,4427.0,24.8079]
[1755389110290,1.4644,4427.1,4427.0,23.6618]
[1755389110679,1.4644,4427.1,4426.5,0.1176]
[1755389110882,1.4644,4426.7,4426.6,20.454]
[1755389111083,1.67032231,4426.7,4426.6,20.454]
[1755389111491,2.30199389,4426.7,4426.6,20.454]
[1755389112392,1.67032231,4426.7,4426.6,21.0368]
[1755389113189,1.67032231,4426.7,4426.6,21.1544]
[1755389113385,1.67032231,4426.7,4426.6,21.4119]
[1755389115490,1.43152231,4426.7,4426.6,21.6001]
[1755389115691,1.2256,4426.7,4426.6,21.6001]
[1755389116283,0.8662,4426.9,4426.7,0.621]
[1755389116487,0.0051885,4427.4,4426.8,0.5034]
[1755389116692,1.4695885,4427.4,4427.3,1.1461]
[1755389116990,1.67546244,4427.4,4427.3,1.1461]
[1755389117492,1.43666244,4427.4,4427.3,1.1461]
[1755389117689,0.0051885,4427.4,4427.3,1.1461]
[1755389123694,1.4750885,4427.4,4427.3,0.4474]
[1755389123883,1.4750885,4427.4,4427.3,0.9437]
[1755389124291,1.4750885,4427.4,4427.3,1.1326]
[1755389124888,1.4750885,4427.4,4426.6,3.2078]
[1755389125091,0.5998,4426.8,4426.7,21.5856]
[1755389125295,0.6224,4427.1,4426.7,22.0371]
[1755389125495,0.6221,4427.0,4426.9,0.5183]
[1755389125685,0.6221,4427.0,4426.9,1.1326]
[1755389126489,0.8858,4427.0,4426.9,1.1326]
[1755389128595,1.4699,4427.0,4426.9,21.5846]
[1755389129389,1.4699,4427.0,4426.9,21.2174]
[1755389129595,0.5998,4426.7,4426.6,3.2078]
[1755389129790,1.4699,4426.7,4426.6,23.6628]
[1755389130498,1.4699,4426.7,4426.6,24.0738]
[1755389130801,1.4699,4426.7,4426.6,24.3573]
[1755389130990,0.9742,4426.7,4426.6,24.7954]
[1755389131196,1.0608,4426.7,4426.6,24.7954]
[1755389131399,1.4699,4426.7,4426.6,24.7954]
[1755389133201,1.4699,4426.7,4426.6,21.5876]
[1755389133899,0.9742,4426.7,4426.6,21.5876]
[1755389134101,1.2219,4426.7,4426.6,21.5876]
[1755389134298,1.2219,4426.7,4426.6,24.7954]
[1755389134497,0.5998,4427.3,4427.2,0.3294]
[1755389134696,1.2222,4427.3,4427.2,20.7854]
[1755389134901,0.0051885,4427.4,4427.2,20.7854]
[1755389134902,0.0051885,4427.4,4427.2,20.9743]
[1755389135303,0.6432885,4427.4,4427.3,1.1326]
[1755389135506,0.8909885,4427.4,4427.3,1.1326]
[1755389135806,1.0659885,4427.4,4427.3,1.1326]
[1755389136409,1.3139885,4427.4,4427.3,1.1326]
[1755389136612,1.4750885,4427.4,4427.3,1.1326]
[1755389137604,1.2270885,4427.4,4427.3,1.1326]
[1755389137810,0.4438885,4427.4,4427.3,1.1326]
[1755389138808,1.3139885,4427.4,4427.3,1.1326]
[1755389139808,1.4750885,4427.4,4427.3,1.1326]
[1755389144406,1.4750885,4427.4,4427.2,23.6638]
[1755389144606,0.6224,4427.3,4427.2,23.6638]
[1755389144812,1.4699,4427.3,4427.2,24.2403]
[1755389145109,1.4699,4427.3,4427.2,24.6075]
[1755389145610,0.0051885,4427.4,4427.2,3.2078]
[1755389145913,0.0051885,4427.4,4426.7,3.2078]
[1755389145914,1.4699,4427.0,4426.7,3.2078]
[1755389146208,0.5998,4426.8,4426.7,23.6758]
[1755389146510,1.4699,4426.8,4426.7,23.6758]
[1755389146905,0.0051885,4427.4,4426.7,24.2565]
[1755389147111,0.2477,4426.8,4426.7,25.1314]
[1755389147306,0.8701,4427.0,4426.8,0.3786]
[1755389147515,0.8701,4427.0,4426.9,1.4556]
[1755389148005,0.175,4427.3,4427.2,1.4556]
[1755389148213,0.175,4427.3,4427.2,25.1334]
[1755389149115,0.4303,4427.3,4427.2,25.1334]
[1755389149512,1.1004,4427.3,4427.2,25.1334]
[1755389149716,1.4888,4427.3,4427.2,25.1334]
[1755389151910,1.4888,4427.3,4427.2,23.6778]
[1755389152116,1.4888,4427.3,4427.2,23.6798]
[1755389152916,1.4888,4427.3,4427.2,23.8524]
[1755389153413,1.4888,4427.3,4427.2,25.1677]
[1755389154513,1.4888,4427.3,4427.2,24.9108]
[1755389154715,1.4888,4427.3,4427.2,24.2733]
[1755389155013,1.4888,4427.3,4427.2,25.1677]
[1755389155717,0.4255,4427.3,4427.2,3.2078]
[1755389155916,0.889,4426.5,4426.2,0.8944]
[1755389156215,0.8568,4425.6,4425.0,1.08918]
[1755389156419,0.8568,4425.6,4424.9,6.3026761]
[1755389156420,0.6015,4425.3,4425.2,1.04516]
[1755389156618,0.1756,4425.3,4425.2,5.14736]
[1755389156821,0.6337,4425.8,4425.5,1.4879]
[1755389157021,0.3516,4425.8,4425.7,1.2429]
[1755389157216,0.6015,4425.8,4425.7,1.4879]
[1755389157520,1.4905,4425.8,4425.7,1.231]
[1755389157814,1.4905,4425.8,4425.7,0.5935]
[1755389158021,1.4905,4425.8,4425.7,0.1726]
[1755389158214,1.4905,4425.8,4425.6,20.521]
[1755389158416,1.4905,4425.7,4425.6,20.521]
[1755389161018,0.9899,4425.7,4425.2,3.2078]
[1755389161220,0.6015,4425.3,4424.6,3.2078]
[1755389161526,1.4905,4424.7,4424.6,3.2078]
[1755389161824,1.4905,4424.7,4424.6,23.7358]
[1755389165629,1.4905,4424.7,4424.6,20.528]
[1755389166428,0.6015,4424.2,4424.1,0.45021445]
[1755389166619,1.4905,4424.2,4424.1,20.97921445]
[1755389166822,1.4905,4424.2,4424.1,21.86171445]
[1755389167025,1.4905,4424.2,4424.1,22.11861445]
[1755389167830,1.4905,4424.2,4424.1,21.86171445]
[1755389168024,1.4905,4424.2,4424.1,21.22421445]
[1755389168932,1.4905,4424.2,4424.1,21.86171445]
[1755389170738,1.4905,4424.2,4424.1,22.11861445]
[1755389171037,0.4255,4424.2,4424.1,22.11861445]
[1755389171337,1.4905,4424.2,4424.1,22.11861445]
[1755389172233,1.4905,4424.2,4424.1,0.69521445]
[1755389172435,1.4905,4424.2,4424.1,20.65271445]
[1755389172935,1.4905,4424.2,4424.1,22.14061445]
[1755389174337,0.4255,4424.2,4424.1,22.14061445]
[1755389175631,1.4905,4424.2,4424.1,20.65271445]
[1755389175938,1.4905,4424.2,4424.1,20.65771445]
[1755389179738,1.4905,4424.2,4424.1,20.65971445]
[1755389182238,1.4905,4424.2,4424.1,0.10171445]
[1755389182438,1.4905,4424.2,4424.1,20.65471445]
[1755389183238,4.6983,4424.2,4424.1,0.10171445]
[1755389183438,4.89992742,4424.2,4424.1,0.10171445]
[1755389183937,4.90323001,4424.2,4424.1,0.10171445]
[1755389184142,5.52967244,4424.2,4424.1,0.10171445]
[1755389191742,5.52967244,4424.2,4424.1,0.70011445]
[1755389191946,5.52967244,4424.2,4424.1,1.55571445]